fUSD/lending_fUSD_20250623
["ID","MTS","AMOUNT","RATE_DAILY","PERIOD"]
[367200769,1750698687362,-1403.27,0.0002409,2]
[367200770,1750698687380,-1435.25,0.0002409,2]
[367200771,1750698687389,-1000.0,0.0002409,2]
[367200772,1750698687399,-800.49,0.0002409,2]
[367200773,1750698687408,-2306.86,0.0002409,2]
[367200774,1750698687417,-3458.41,0.0002409,2]
[367200775,1750698687427,-573.21,0.0002409,2]
[367200776,1750698687435,-1743.2,0.0002409,2]
[367200777,1750698687445,-14104.896354,0.0002409,2]
[367200778,1750698687455,-10144.14,0.0002409,2]
[367200779,1750698687464,-490.0,0.0002409,2]
[367200780,1750698687473,-886.2,0.0002409,2]
[367200781,1750698687483,-2114.89,0.0002409,2]
[367200782,1750698687492,-4042.92,0.0002409,2]
[367200783,1750698687502,-2394.25,0.0002409,2]
[367200784,1750698687511,-731.69,0.0002409,2]
[367200785,1750698687521,-1526.25,0.0002409,2]
[367200786,1750698687530,-1361.84,0.0002409,2]
[367200787,1750698687540,-2763.6,0.0002409,2]
[367200788,1750698687549,-493.15,0.0002409,2]
[367200789,1750698687559,-5649.05,0.0002409,2]
[367200790,1750698687569,-841.69,0.0002409,2]
[367200791,1750698687579,-1021.6,0.0002409,2]
[367200792,1750698687591,-1566.44,0.0002409,2]
[367200793,1750698687607,-1307.2,0.0002409,2]
[367200794,1750698687617,-2220.37,0.0002409,2]
[367200795,1750698687627,-1694.76,0.0002409,2]
[367200796,1750698687636,-1333.28,0.0002409,2]
[367200797,1750698687646,-4728.59,0.0002409,2]
[367200798,1750698687655,-6206.01,0.0002409,2]
[367200799,1750698687665,-830.47,0.0002409,2]
[367200800,1750698687674,-1672.77,0.0002409,2]
[367200801,1750698687684,-1243.22,0.0002409,2]
[367200802,1750698687694,-585.45,0.0002409,2]
[367200803,1750698687704,-15974.58,0.0002409,2]
[367200804,1750698687714,-1042.64,0.0002409,2]
[367200805,1750698687725,-1213.26,0.0002409,2]
[367200806,1750698687736,-1057.02,0.0002409,2]
[367200807,1750698687746,-8982.57,0.0002409,2]
[367200808,1750698687758,-3184.98,0.0002409,2]
[367200809,1750698687767,-584.73,0.0002409,2]
[367200810,1750698687777,-955.19,0.0002409,2]
[367200811,1750698687786,-1281.44,0.0002409,2]
[367200812,1750698687796,-1451.39,0.0002409,2]
[367200813,1750698687805,-1334.22,0.0002409,2]
[367200814,1750698687814,-3646.54,0.0002409,2]
[367200815,1750698687823,-2077.8,0.0002409,2]
[367200816,1750698687833,-1126.53,0.0002409,2]
[367200817,1750698687847,-1062.91,0.0002409,2]
[367200818,1750698687857,-1754.15,0.0002409,2]
[367200819,1750698687868,-783.6,0.0002409,2]
[367200820,1750698687878,-1637.16,0.0002409,2]
[367200821,1750698687888,-1986.85,0.0002409,2]
[367200822,1750698687897,-30257.07,0.0002409,2]
[367200823,1750698687907,-4431.79,0.0002409,2]
[367200824,1750698687916,-1908.75,0.0002409,2]
[367200825,1750698687925,-1251.43,0.0002409,2]
[367200826,1750698687935,-1043.13,0.0002409,2]
[367200827,1750698687944,-1449.88,0.0002409,2]
[367200828,1750698687954,-3408.85,0.0002409,2]
[367200829,1750698687965,-1487.37,0.0002409,2]
[367200830,1750698687976,-1477.39,0.0002409,2]
[367200831,1750698687987,-1309.69,0.0002409,2]
[367200832,1750698687998,-1399.23,0.0002409,2]
[367200833,1750698688009,-4978.94,0.0002409,2]
[367200834,1750698688020,-1851.33,0.0002409,2]
[367200835,1750698688030,-1549.84,0.0002409,2]
[367200836,1750698688041,-1569.7,0.0002409,2]
[367200837,1750698688052,-4930.1,0.0002409,2]
[367200838,1750698688064,-2819.42,0.0002409,2]
[367200839,1750698688075,-3120.58,0.0002409,2]
[367200840,1750698688087,-1734.46,0.0002409,2]
[367200841,1750698688103,-1884.11,0.0002409,2]
[367200842,1750698688114,-4270.66,0.0002409,2]
[367200843,1750698688124,-747.75,0.0002409,2]
[367200844,1750698688135,-2881.99,0.0002409,2]
[367200845,1750698688146,-5897.6,0.0002409,2]
[367200846,1750698688157,-490.0,0.0002409,2]
[367200847,1750698688169,-1573.74,0.0002409,2]
[367200848,1750698688180,-1383.69,0.0002409,2]
[367200849,1750698688190,-885.33,0.0002409,2]
[367200850,1750698688201,-1501.78,0.0002409,2]
[367200851,1750698688211,-698.8,0.00024091,2]
[367200852,1750698688221,-669.68,0.00024091,2]
[367200853,1750698688231,-490.0,0.00024091,2]
[367200854,1750698688241,-929.07,0.00024091,2]
[367200855,1750698688251,-490.0,0.00024091,2]
[367200856,1750698688261,-490.0,0.00024091,2]
[367200857,1750698688271,-490.0,0.00024091,2]
[367200858,1750698688283,-1110.49,0.00024091,2]
[367200859,1750698688293,-791.44,0.00024091,2]
[367200860,1750698688303,-490.0,0.00024091,2]
[367200861,1750698688313,-473.59164125,0.00024091,2]
[367200862,1750698688324,-1147.96,0.00024091,2]
[367200863,1750698688335,-490.0,0.00024091,2]
[367200864,1750698688349,-490.0,0.00024091,2]
[367200865,1750698688359,-490.0,0.00024091,2]
[367200866,1750698688371,-490.0,0.00024091,2]
[367200867,1750698688382,-490.0,0.00024091,2]
[367200868,1750698688392,-920.38,0.00024091,2]
[367200869,1750698688401,-564.09,0.00024091,2]
[367200870,1750698688410,-773.07,0.00024091,2]
[367200871,1750698688420,-772.88,0.00024091,2]
[367200872,1750698688439,-974.05,0.00024091,2]
[367200873,1750698688449,-490.0,0.00024091,2]
[367200874,1750698688458,-490.0,0.00024091,2]
[367200875,1750698688468,-490.0,0.00024091,2]
[367200876,1750698688478,-490.0,0.00024091,2]
[367200877,1750698688488,-563.39,0.00024091,2]
[367200878,1750698688498,-490.0,0.00024091,2]
[367200879,1750698688508,-490.0,0.00024091,2]
[367200880,1750698688518,-490.0,0.00024091,2]
[367200881,1750698688527,-490.0,0.00024091,2]
[367200882,1750698688538,-523.29,0.00024091,2]
[367200883,1750698688549,-490.0,0.00024091,2]
[367200884,1750698688558,-572.67182859,0.00024091,2]
[367200885,1750698688568,-490.0,0.00024091,2]
[367200886,1750698688578,-1284.85,0.00024091,2]
[367200887,1750698688588,-740.67,0.00024091,2]
[367200888,1750698688600,-596.54,0.00024091,2]
[367200889,1750698688610,-490.0,0.00024091,2]
[367200890,1750698688620,-565.83088867,0.00024091,2]
[367200891,1750698688630,-679.03,0.00024091,2]
[367200892,1750698688639,-795.0,0.00024091,2]
[367200893,1750698688649,-565.51,0.00024091,2]
[367200894,1750698688659,-490.0,0.00024091,2]
[367200895,1750698688669,-924.56,0.00024091,2]
[367200896,1750698688678,-1608.33,0.00024091,2]
[367200897,1750698688688,-540.42,0.00024091,2]
[367200898,1750698688697,-631.4,0.00024091,2]
[367200899,1750698688706,-1315.78,0.00024091,2]
[367200900,1750698688716,-940.16,0.00024091,2]
[367200901,1750698688726,-836.48,0.00024091,2]
[367200902,1750698688736,-361.29874041,0.00024091,2]
[367200903,1750698688745,-676.41,0.00024091,2]
[367200904,1750698688755,-490.0,0.00024091,2]
[367200905,1750698688765,-490.0,0.00024091,2]
[367200906,1750698688774,-490.0,0.00024091,2]
[367200907,1750698688784,-1995.8,0.00024091,2]
[367200908,1750698688793,-490.0,0.00024091,2]
[367200909,1750698688803,-955.43,0.00024091,2]
[367200910,1750698688813,-946.21,0.00024091,2]
[367200911,1750698688822,-490.0,0.00024091,2]
[367200912,1750698688832,-490.0,0.00024091,2]
[367200913,1750698688842,-1199.8,0.00024091,2]
[367200914,1750698688852,-1746.69,0.00024091,2]
[367200915,1750698688862,-1597.4,0.00024091,2]
[367200916,1750698688871,-721.98,0.00024091,2]
[367200917,1750698688881,-490.0,0.00024091,2]
[367200918,1750698688891,-1078.2,0.00024091,2]
[367200919,1750698688900,-1245.27,0.00024091,2]
[367200920,1750698688910,-490.0,0.00024091,2]
[367200921,1750698688919,-516.18,0.00024091,2]
[367200922,1750698688928,-490.0,0.00024091,2]
[367200923,1750698688938,-490.0,0.00024091,2]
[367200924,1750698688947,-990.07,0.00024091,2]
[367200925,1750698688956,-549.99,0.00024091,2]
[367200926,1750698688966,-490.0,0.00024091,2]
[367200927,1750698688975,-752.35,0.00024091,2]
[367200928,1750698688985,-490.0,0.00024091,2]
[367200929,1750698688994,-496.53168347,0.00024091,2]
[367200930,1750698689004,-1453.03,0.00024091,2]
[367200931,1750698689013,-785.71,0.00024091,2]
[367200932,1750698689022,-742.29,0.00024091,2]
[367200933,1750698689032,-1602.78,0.00024091,2]
[367200934,1750698689042,-856.74,0.00024091,2]
[367200935,1750698689051,-1829.46,0.00024091,2]
[367200936,1750698689061,-490.0,0.00024091,2]
[367200937,1750698689070,-962.15,0.00024091,2]
[367200938,1750698689080,-500.0,0.00024091,2]
[367200939,1750698689092,-500.0,0.00024091,2]
[367200940,1750698689104,-500.0,0.00024091,2]
[367200941,1750698689113,-500.0,0.00024091,2]
[367200942,1750698689123,-259.45906068,0.00024091,2]
[367200943,1750698689133,-847.97,0.00024091,2]
[367200944,1750698689143,-1010.43,0.00024091,2]
[367200945,1750698689152,-490.0,0.00024091,2]
[367200946,1750698689162,-490.0,0.00024091,2]
[367200947,1750698689172,-845.85,0.00024091,2]
[367200948,1750698689182,-490.0,0.00024091,2]
[367200949,1750698689191,-822.97,0.00024091,2]
[367200950,1750698689200,-490.0,0.00024091,2]
[367200951,1750698689210,-516.6138689,0.00024091,2]
[367200952,1750698689219,-526.85,0.00024091,2]
[367200953,1750698689228,-1459.19,0.00024091,2]
[367200954,1750698689238,-490.0,0.00024091,2]
[367200955,1750698689247,-1910.2,0.00024091,2]
[367200956,1750698689256,-975.14,0.00024091,2]
[367200957,1750698689266,-1090.36,0.00024091,2]
[367200958,1750698689275,-490.0,0.00024091,2]
[367200959,1750698689285,-1700.88,0.00024091,2]
[367200960,1750698689294,-432.25309164,0.00024091,2]
[367200961,1750698689303,-490.0,0.00024091,2]
[367200962,1750698689312,-661.71,0.00024091,2]
[367200963,1750698689322,-2474.52,0.00024091,2]
[367200964,1750698689332,-1007.33,0.00024091,2]
[367200965,1750698689342,-621.4,0.00024091,2]
[367200966,1750698689351,-490.0,0.00024091,2]
[367200967,1750698689361,-1520.6,0.00024091,2]
[367200968,1750698689371,-604.07,0.00024091,2]
[367200969,1750698689381,-490.0,0.00024091,2]
[367200970,1750698689390,-490.0,0.00024091,2]
[367200971,1750698689400,-515.83,0.00024091,2]
[367200972,1750698689409,-636.82,0.00024091,2]
[367200973,1750698689419,-1671.93,0.00024091,2]
[367200974,1750698689429,-1091.97,0.00024091,2]
[367200975,1750698689438,-500.0,0.00024091,2]
[367200976,1750698689448,-500.0,0.00024091,2]
[367200977,1750698689459,-490.0,0.00024091,2]
[367200978,1750698689468,-500.0,0.00024091,2]
[367200979,1750698689478,-500.0,0.00024091,2]
[367200980,1750698689487,-490.0,0.00024091,2]
[367200981,1750698689498,-1337.29,0.00024091,2]
[367200982,1750698689507,-1057.36,0.00024091,2]
[367200983,1750698689516,-897.65,0.00024091,2]
[367200984,1750698689526,-490.0,0.00024091,2]
[367200985,1750698689535,-1237.82,0.00024091,2]
[367200986,1750698689544,-513.51,0.00024091,2]
[367200987,1750698689554,-628.5,0.00024091,2]
[367200988,1750698689564,-1452.58,0.00024091,2]
[367200989,1750698689573,-2187.25,0.00024091,2]
[367200990,1750698689583,-554.23,0.00024091,2]
[367200991,1750698689596,-541.28,0.00024091,2]
[367200992,1750698689606,-885.64,0.00024091,2]
[367200993,1750698689616,-542.88,0.00024091,2]
[367200994,1750698689626,-838.0,0.00024091,2]
[367200995,1750698689635,-1607.74,0.00024091,2]
[367200996,1750698689645,-2113.25,0.00024091,2]
[367200997,1750698689655,-1894.29,0.00024091,2]
[367200998,1750698689664,-490.0,0.00024091,2]
[367200999,1750698689673,-490.0,0.00024091,2]
[367201000,1750698689683,-1031.09,0.00024091,2]
[367201001,1750698689692,-490.0,0.00024091,2]
[367201002,1750698689701,-490.0,0.00024091,2]
[367201003,1750698689710,-490.0,0.00024091,2]
[367201004,1750698689720,-360.38,0.00024091,2]
[367201005,1750698689729,-788.91,0.00024091,2]
[367201006,1750698689739,-490.0,0.00024091,2]
[367201007,1750698689748,-490.0,0.00024091,2]
[367201008,1750698689758,-2071.88,0.00024091,2]
[367201009,1750698689767,-1258.85,0.00024091,2]
[367201010,1750698689776,-788.65,0.00024091,2]
[367201011,1750698689786,-490.0,0.00024091,2]
[367201012,1750698689795,-490.0,0.00024091,2]
[367201013,1750698689804,-1574.29,0.00024091,2]
[367201014,1750698689813,-1152.75,0.00024091,2]
[367201015,1750698689824,-1238.42,0.00024091,2]
[367201016,1750698689833,-1608.07,0.00024091,2]
[367201017,1750698689846,-1608.07,0.00024091,2]
[367201018,1750698689856,-1608.07,0.00024091,2]
[367201019,1750698689866,-1608.07,0.00024091,2]
[367201020,1750698689876,-1608.24457459,0.00024091,2]
[367201021,1750698689886,-1425.09,0.00024091,2]
[367201022,1750698689896,-490.0,0.00024091,2]
[367201023,1750698689906,-1519.63,0.00024091,2]
[367201024,1750698689915,-666.89,0.00024091,2]
[367201025,1750698689925,-490.0,0.00024091,2]
[367201026,1750698689934,-490.0,0.00024091,2]
[367201027,1750698689944,-585.27,0.00024091,2]
[367201028,1750698689953,-490.0,0.00024091,2]
[367201029,1750698689962,-1335.79,0.00024091,2]
[367201030,1750698689972,-490.0,0.00024091,2]
[367201031,1750698689981,-490.0,0.00024091,2]
[367201032,1750698689991,-1907.04,0.00024091,2]
[367201033,1750698690000,-490.0,0.00024091,2]
[367201034,1750698690010,-1660.38,0.00024091,2]
[367201035,1750698690019,-804.67,0.00024091,2]
[367201036,1750698690028,-490.0,0.00024091,2]
[367201037,1750698690038,-1654.5,0.00024091,2]
[367201038,1750698690047,-1140.14,0.00024091,2]
[367201039,1750698690057,-490.0,0.00024091,2]
[367201040,1750698690066,-490.0,0.00024091,2]
[367201041,1750698690076,-490.0,0.00024091,2]
[367201042,1750698690086,-1832.21,0.00024091,2]
[367201043,1750698690101,-490.0,0.00024091,2]
[367201044,1750698690110,-858.09,0.00024091,2]
[367201045,1750698690120,-660.75,0.00024091,2]
[367201046,1750698690130,-490.0,0.00024091,2]
[367201047,1750698690139,-490.0,0.00024091,2]
[367201048,1750698690149,-1520.18,0.00024091,2]
[367201049,1750698690158,-490.0,0.00024091,2]
[367201050,1750698690168,-1435.25,0.00024091,2]
[367201051,1750698690177,-1338.13,0.00024091,2]
[367201052,1750698690187,-1071.6,0.00024091,2]
[367201053,1750698690197,-1435.25,0.00024091,2]
[367201054,1750698690207,-1435.25,0.00024091,2]
[367201055,1750698690216,-1435.25,0.00024091,2]
[367201056,1750698690225,-1435.40430361,0.00024091,2]
[367201057,1750698690234,-500.0,0.00024091,2]
[367201058,1750698690244,-490.0,0.00024091,2]
[367201059,1750698690253,-1193.49,0.00024091,2]
[367201060,1750698690263,-490.0,0.00024091,2]
[367201061,1750698690272,-765.84,0.00024091,2]
[367201062,1750698690282,-490.0,0.00024091,2]
[367201063,1750698690291,-490.0,0.00024091,2]
[367201064,1750698690301,-492.90394483,0.00024091,2]
[367201065,1750698690310,-490.0,0.00024091,2]
[367201066,1750698690320,-975.19,0.00024091,2]
[367201067,1750698690329,-1121.14,0.00024091,2]
[367201068,1750698690339,-490.0,0.00024091,2]
[367201069,1750698690352,-721.36,0.00024091,2]
[367201070,1750698690362,-490.0,0.00024091,2]
[367201071,1750698690371,-1496.89,0.00024091,2]
[367201072,1750698690380,-490.0,0.00024091,2]
[367201073,1750698690390,-1850.56,0.00024091,2]
[367201074,1750698690401,-851.87,0.00024091,2]
[367201075,1750698690411,-775.66,0.00024091,2]
[367201076,1750698690420,-508.01,0.00024091,2]
[367201077,1750698690430,-490.0,0.00024091,2]
[367201078,1750698690439,-696.43,0.00024091,2]
[367201079,1750698690449,-490.0,0.00024091,2]
[367201080,1750698690459,-503.51,0.00024091,2]
[367201081,1750698690468,-759.75,0.00024091,2]
[367201082,1750698690478,-719.21,0.00024091,2]
[367201083,1750698690488,-550.96,0.00024091,2]
[367201084,1750698690497,-1736.88,0.00024091,2]
[367201085,1750698690507,-1417.97,0.00024091,2]
[367201086,1750698690517,-490.0,0.00024091,2]
[367201087,1750698690526,-490.0,0.00024092,2]
[367201088,1750698690536,-1272.27,0.00024092,2]
[367201089,1750698690545,-490.0,0.00024092,2]
[367201090,1750698690555,-490.0,0.00024092,2]
[367201091,1750698690564,-490.0,0.00024092,2]
[367201092,1750698690574,-688.42,0.00024092,2]
[367201093,1750698690583,-369.34582861,0.00024092,2]
[367201094,1750698690593,-490.0,0.00024092,2]
[367201095,1750698690606,-490.0,0.00024092,2]
[367201096,1750698690615,-619.84,0.00024092,2]
[367201097,1750698690625,-513.35912697,0.00024092,2]
[367201098,1750698690635,-490.0,0.00024092,2]
[367201099,1750698690645,-815.99,0.00024092,2]
[367201100,1750698690654,-490.0,0.00024092,2]
[367201101,1750698690886,-232.34131014,0.00024092,2]
[367201102,1750698690904,-490.0,0.00024092,2]
[367201103,1750698690914,-490.0,0.00024092,2]
[367201104,1750698690924,-232.72469441,0.00024092,2]
[367201105,1750698690933,-491.68,0.00024092,2]
[367201106,1750698690942,-490.0,0.00024092,2]
[367201107,1750698690952,-490.0,0.00024092,2]
[367201108,1750698690961,-490.0,0.00024092,2]
[367201109,1750698690971,-490.0,0.00024092,2]
[367201110,1750698690981,-982.4,0.00024092,2]
[367201111,1750698690990,-683.19,0.00024092,2]
[367201112,1750698691000,-521.285333,0.00024092,2]
[367201113,1750698691010,-1734.24,0.00024092,2]
[367201114,1750698691020,-2397.5,0.00024092,2]
[367201115,1750698691030,-665.68,0.00024092,2]
[367201116,1750698691040,-1068.53,0.00024092,2]
[367201117,1750698691050,-963.54,0.00024092,2]
[367201118,1750698691061,-490.0,0.00024092,2]
[367201119,1750698691071,-1365.65,0.00024092,2]
[367201120,1750698691082,-1251.07,0.00024092,2]
[367201121,1750698691092,-1403.96,0.00024092,2]
[367201122,1750698691105,-851.44,0.00024092,2]
[367201123,1750698691114,-537.5,0.00024092,2]
[367201124,1750698691124,-355.89744584,0.00024094,2]
[367201125,1750698691134,-1000.0,0.00024094,2]
[367201126,1750698691144,-1000.0,0.00024094,2]
[367201127,1750698691154,-1000.0,0.00024094,2]
[367201128,1750698691164,-1000.0,0.00024094,2]
[367201129,1750698691174,-1000.0,0.00024094,2]
[367201130,1750698691186,-1000.0,0.00024094,2]
[367201131,1750698691196,-1000.0,0.00024094,2]
[367201132,1750698691206,-1000.0,0.00024094,2]
[367201133,1750698691216,-1000.0,0.00024094,2]
[367201134,1750698691226,-1000.0,0.00024094,2]
[367201135,1750698691237,-1000.0,0.00024094,2]
[367201136,1750698691246,-1000.0,0.00024094,2]
[367201137,1750698691256,-1000.0,0.00024094,2]
[367201138,1750698691267,-1000.0,0.00024094,2]
[367201139,1750698691277,-1000.0,0.00024094,2]
[367201140,1750698691286,-1000.0,0.00024094,2]
[367201141,1750698691295,-1000.0,0.00024094,2]
[367201142,1750698691305,-1000.0,0.00024094,2]
[367201143,1750698691315,-320.90416896,0.00024094,2]
[367201144,1750698691326,-500.0,0.00024096,2]
[367201145,1750698691338,-549.0,0.00024096,2]
[367201146,1750698691350,-500.0,0.00024096,2]
[367201147,1750698691360,-500.0,0.00024096,2]
[367201148,1750698691370,-500.0,0.00024096,2]
[367201149,1750698691380,-3000.0,0.000241,2]
[367201150,1750698691390,-1000.0,0.000241,2]
[367201151,1750698691399,-2316.081396,0.000241,2]
[367201152,1750698691408,-158.30547888,0.00024106,2]
[367201153,1750698691418,-13816.71887659,0.00024108,2]
[367201154,1750698691427,-150.0,0.00024109,2]
[367201155,1750698691436,-455.7,0.00024109,2]
[367201156,1750698691445,-150.0,0.00024109,2]
[367201157,1750698691455,-455.7,0.00024109,2]
[367201158,1750698691464,-171.0,0.00024109,2]
[367201159,1750698691474,-150.0,0.00024109,2]
[367201160,1750698691483,-171.0,0.00024109,2]
[367201161,1750698691493,-454.42,0.00024109,2]
[367201162,1750698691503,-355.16,0.00024109,2]
[367201163,1750698691514,-171.0,0.00024109,2]
[367201164,1750698691525,-355.16,0.00024109,2]
[367201165,1750698691534,-171.0,0.00024109,2]
[367201166,1750698691544,-355.16,0.00024109,2]
[367201167,1750698691554,-171.0,0.00024109,2]
[367201168,1750698691564,-355.16,0.00024109,2]
[367201169,1750698691574,-355.16,0.00024109,2]
[367201170,1750698691584,-171.0,0.00024109,2]
[367201171,1750698691598,-965.24,0.0002411,2]
[367201172,1750698691608,-285.32504675,0.00024111,2]
[367201173,1750698691618,-150.0,0.00024119,2]
[367201174,1750698691628,-500.0,0.00024121,2]
[367201175,1750698691637,-1000.0,0.00024121,2]
[367201176,1750698691647,-500.0,0.00024124,2]
[367201177,1750698691657,-549.0,0.00024124,2]
[367201178,1750698691668,-500.0,0.00024124,2]
[367201179,1750698691678,-500.0,0.00024124,2]
[367201180,1750698691687,-585.72654585,0.00024124,2]
[367201181,1750698691697,-150.0,0.00024133,2]
[367201182,1750698691706,-529.02206399,0.00024141,10]
[367201183,1750698691716,-168.0,0.00024145,2]
[367201184,1750698691726,-150.0,0.00024145,2]
[367201185,1750698691736,-203.0,0.00024148,4]
[367201186,1750698691746,-500.0,0.00024151,2]
[367201187,1750698691755,-549.0,0.00024151,2]
[367201188,1750698691766,-500.0,0.00024151,2]
[367201189,1750698691776,-500.0,0.00024151,2]
[367201190,1750698691785,-150.0,0.00024161,2]
[367201191,1750698691794,-168.0,0.00024164,2]
[367201192,1750698691804,-200.0,0.00024177,2]
[367201193,1750698691814,-505.3991242,0.00024179,2]
[367201194,1750698691823,-549.0,0.00024179,2]
[367201195,1750698691835,-500.0,0.00024179,2]
[367201196,1750698691848,-500.0,0.00024179,2]
[367201197,1750698691857,-150.0,0.00024198,2]
[367201198,1750698691867,-150.0,0.00024199,2]
[367201199,1750698691875,-3000.0,0.000242,2]
[367201200,1750698691885,-2000.0,0.000242,2]
[367201201,1750698691895,-549.0,0.00024206,2]
[367201202,1750698691904,-500.0,0.00024206,2]
[367201203,1750698691914,-500.0,0.00024206,2]
[367201204,1750698691923,-409.68002318,0.0002421,2]
[367201205,1750698691934,-3590.68586631,0.0002421,2]
[367201206,1750698691943,-150.0,0.0002421,2]
[367201207,1750698691954,-150.0,0.00024212,2]
[367201208,1750698691963,-150.0,0.00024231,2]
[367201209,1750698691975,-549.0,0.00024233,2]
[367201210,1750698691985,-500.0,0.00024233,2]
[367201211,1750698691997,-434.91528428,0.00024233,2]
[367201212,1750698692006,-1000.0,0.0002424,2]
[367201213,1750698692015,-549.0,0.00024261,2]
[367201214,1750698692025,-500.0,0.00024261,2]
[367201215,1750698692034,-150.0,0.00024262,2]
[367201216,1750698692044,-666.82455653,0.00024264,2]
[367201217,1750698692055,-570.1521373,0.00024266,2]
[367201218,1750698692065,-150.0,0.00024269,2]
[367201219,1750698692076,-549.0,0.00024288,2]
[367201220,1750698692089,-500.0,0.00024288,2]
[367201221,1750698692102,-1165.686,0.000243,2]
[367201222,1750698692112,-156.0,0.000243,2]
[367201223,1750698692121,-4097.0,0.000243,2]
[367201224,1750698692131,-856.0,0.000243,2]
[367201225,1750698692140,-885.0,0.000243,2]
[367201226,1750698692149,-2000.0,0.000243,2]
[367201227,1750698692158,-217.7822685,0.00024311,2]
[367201228,1750698692167,-549.0,0.00024316,2]
[367201229,1750698692177,-546.13400092,0.00024316,2]
[367201230,1750698692187,-168.0,0.00024323,2]
[367201231,1750698692196,-1094.34985688,0.00024325,2]
[367201232,1750698692205,-152.0,0.00024325,2]
[367201233,1750698692215,-154.31656129,0.00024325,2]
[367201234,1750698692224,-166.0,0.00024325,2]
[367201235,1750698692233,-151.0,0.00024325,2]
[367201236,1750698692242,-154.96534825,0.00024325,2]
[367201237,1750698692251,-151.0,0.00024325,2]
[367201238,1750698692261,-1200.0,0.00024325,2]
[367201239,1750698692270,-287.33422519,0.00024325,2]
[367201240,1750698692279,-741.86585385,0.00024325,2]
[367201241,1750698692288,-447.69981965,0.00024325,2]
[367201242,1750698692298,-150.0,0.00024327,2]
[367201243,1750698692307,-158.19069472,0.00024339,2]
[367201244,1750698692317,-549.0,0.00024343,2]
[367201245,1750698692327,-150.0,0.00024344,2]
[367201246,1750698692336,-33955.4666483,0.00024347,2]
[367201247,1750698692346,-1273.3088377,0.00024347,2]
[367201248,1750698692356,-210612.9463626,0.00024347,2]
[367201249,1750698692365,-5425.9684026,0.00024347,2]
[367201250,1750698692375,-529.02206399,0.00024348,11]
[367201251,1750698692384,-150.0,0.00024351,2]
[367201252,1750698692394,-285.32504675,0.00024355,2]
[367201253,1750698692403,-728.95,0.00024358,2]
[367201254,1750698692412,-490.0,0.00024358,2]
[367201255,1750698692421,-1326.54,0.00024358,2]
[367201256,1750698692431,-558.39,0.00024358,2]
[367201257,1750698692441,-1102.83,0.00024358,2]
[367201258,1750698692450,-156.587,0.00024361,2]
[367201259,1750698692460,-201.61635663,0.00024361,2]
[367201260,1750698692469,-215.0738,0.00024361,2]
[367201261,1750698692478,-490.0,0.00024362,2]
[367201262,1750698692488,-490.0,0.00024362,2]
[367201263,1750698692497,-519.65,0.00024362,2]
[367201264,1750698692507,-490.0,0.00024363,2]
[367201265,1750698692516,-490.0,0.00024363,2]
[367201266,1750698692526,-490.0,0.00024363,2]
[367201267,1750698692535,-490.0,0.00024363,2]
[367201268,1750698692545,-490.0,0.00024363,2]